bitfinex/quotes_BTCUSD_20260125
["timestamp","ask_amount","ask_price","bid_price","bid_amount"]
[1769303938462,0.03,89186.0,89185.0,0.23995266]
[1769303938697,0.04052017,89186.0,89185.0,0.23995266]
[1769303940229,0.03,89197.0,89185.0,0.53913476]
[1769303940470,0.03,89197.0,89187.0,0.2991821]
[1769303940660,0.03,89197.0,89189.0,0.25089729]
[1769303941287,0.0002064,89202.0,89189.0,0.25089729]
[1769303941288,0.03,89196.0,89189.0,0.25089729]
[1769303942318,0.03,89195.0,89189.0,0.25089729]
[1769303943244,0.03,89194.0,89189.0,0.25089729]
[1769303943465,0.03,89194.0,89190.0,0.22704567]
[1769303944164,0.03,89194.0,89190.0,0.50212133]
[1769303944382,0.0002064,89202.0,89190.0,0.50212133]
[1769303945021,0.0002064,89202.0,89190.0,0.49532554]
[1769303947307,0.0002064,89202.0,89190.0,0.28838453]
[1769303947513,0.0002064,89202.0,89193.0,0.27507566]
[1769303947716,0.0302064,89202.0,89191.0,0.01121189]
[1769303947924,0.17224,89212.0,89190.0,0.29959654]
[1769303948085,0.11208018,89211.0,89194.0,0.22704567]
[1769303948274,0.11208018,89211.0,89196.0,0.22704567]
[1769303948474,0.28838453,89210.0,89196.0,0.22704567]
[1769303948671,0.11208018,89209.0,89196.0,0.22704567]
[1769303948876,0.03,89208.0,89196.0,0.22704567]
[1769303952357,0.03,89206.0,89196.0,0.22704567]
[1769303952518,0.03,89204.0,89196.0,0.22704567]
[1769303952698,0.03,89202.0,89196.0,0.22704567]
[1769303952904,0.03,89200.0,89197.0,0.28735355]
[1769303953142,0.03,89198.0,89197.0,0.52695837]
[1769303953344,0.04050187,89198.0,89197.0,0.52695837]
[1769303954245,0.03,89211.0,89197.0,0.28735355]
[1769303955340,0.03,89210.0,89197.0,0.28735355]
[1769303955950,0.03,89210.0,89197.0,0.52695837]
[1769303956152,0.03,89210.0,89202.0,0.28727692]
[1769303956319,0.03,89209.0,89204.0,0.23960482]
[1769303956521,0.46065885,89220.0,89205.0,0.28735355]
[1769303957427,0.03,89219.0,89205.0,0.28735355]
[1769303960897,0.03,89219.0,89204.0,0.23960482]
[1769303960898,0.31008946,89219.0,89204.0,0.23960482]
[1769303961297,0.03,89217.0,89204.0,0.23960482]
[1769303962705,0.03,89215.0,89204.0,0.23960482]
[1769303962938,0.29129896,89210.0,89190.0,0.23960482]
[1769303963137,0.31008946,89207.0,89190.0,0.23960482]
[1769303963512,0.25665283,89207.0,89190.0,0.23960482]
[1769303963637,0.31008946,89205.0,89190.0,0.23960482]
[1769303963838,0.32129959,89205.0,89188.0,0.0001512]
[1769303964161,0.31008946,89203.0,89188.0,0.0001512]
[1769303965773,0.03,89199.0,89188.0,0.0001512]
[1769303966181,0.03,89197.0,89188.0,0.0001512]
[1769303966381,0.03,89195.0,89188.0,0.0001512]
[1769303967368,0.03,89194.0,89188.0,0.0001512]
[1769303968344,0.03,89200.0,89188.0,0.0001512]
[1769303968529,0.03,89193.0,89188.0,0.0001512]
[1769303968844,0.03,89193.0,89188.0,0.02111916]
[1769303969290,0.03,89191.0,89188.0,0.02111916]
[1769303969794,0.03,89191.0,89188.0,0.0001512]
[1769303970265,0.03,89190.0,89188.0,0.0001512]
[1769303971438,0.22665283,89201.0,89188.0,0.0001512]
[1769303971647,0.01050736,89200.0,89188.0,0.0001512]
[1769303971850,0.01050736,89199.0,89188.0,0.01857149]
[1769303972064,0.01050736,89198.0,89188.0,0.01857149]
[1769303972268,0.01050736,89197.0,89188.0,0.01857149]
[1769303972469,0.01050736,89196.0,89188.0,0.01857149]
[1769303972676,0.01050736,89195.0,89188.0,0.01857149]
[1769303972978,0.01050736,89194.0,89188.0,0.01857149]
[1769303973194,0.01050736,89193.0,89188.0,0.01857149]
[1769303973392,0.01050736,89192.0,89188.0,0.01857149]
[1769303973595,0.01050736,89191.0,89188.0,0.01857149]
[1769303973799,0.22665283,89201.0,89188.0,0.01857149]
[1769303974004,0.01050876,89200.0,89188.0,0.0001512]
[1769303974306,0.01050876,89199.0,89188.0,0.0001512]
[1769303974517,0.22665283,89201.0,89188.0,0.0001512]
[1769303974518,0.01050876,89198.0,89188.0,0.0001512]
[1769303974820,0.01050876,89197.0,89188.0,0.0001512]
[1769303975019,0.01050876,89196.0,89188.0,0.0001512]
[1769303975232,0.22665283,89201.0,89188.0,0.0001512]
[1769303975233,0.01050876,89195.0,89188.0,0.0001512]
[1769303975539,0.01050876,89194.0,89188.0,0.0001512]
[1769303975786,0.01050876,89193.0,89188.0,0.0001512]
[1769303975966,0.01050876,89192.0,89188.0,0.0001512]
[1769303976191,0.01050876,89191.0,89188.0,0.0001512]
[1769303976314,0.01050876,89190.0,89188.0,0.0001512]
[1769303976523,0.00050876,89189.0,89188.0,0.0001512]
[1769303981415,0.03050876,89189.0,89188.0,0.0001512]
[1769303981821,0.03,89189.0,89188.0,0.0001512]
[1769303982340,0.03,89200.0,89188.0,0.0001512]
[1769303984175,0.31826765,89200.0,89188.0,0.0001512]
[1769303986082,0.03,89200.0,89188.0,0.0001512]
[1769303987550,0.14210116,89200.0,89188.0,0.0001512]
[1769303988683,0.03,89198.0,89188.0,0.0001512]
[1769303988874,0.03,89196.0,89188.0,0.0001512]
[1769303989016,0.03,89194.0,89188.0,0.0001512]
[1769303989234,0.03,89192.0,89188.0,0.0001512]
[1769303989429,0.03,89190.0,89188.0,0.0001512]
[1769303989692,0.04051012,89189.0,89188.0,0.0001512]
[1769303991760,0.40036881,89200.0,89188.0,0.0001512]
[1769303991997,0.03,89199.0,89188.0,0.0001512]
[1769303993963,0.03,89199.0,89188.0,0.00639661]
[1769303994278,0.03,89199.0,89188.0,0.01292008]
[1769303994500,0.03,89198.0,89188.0,0.01292008]
[1769303994651,0.03,89198.0,89188.0,0.0001512]
[1769303995561,0.03,89199.0,89188.0,0.0001512]
[1769303996382,0.1421732,89199.0,89188.0,0.0001512]
[1769303996614,0.03,89201.0,89188.0,0.0001512]
[1769304000627,0.03,89199.0,89188.0,0.0001512]
[1769304000846,0.14218502,89199.0,89188.0,0.0001512]
[1769304002763,0.14218502,89198.0,89190.0,0.218681]
[1769304002961,0.08956967,89209.0,89192.0,0.01121176]
[1769304003137,0.11220727,89208.0,89193.0,0.06726938]
[1769304003343,0.11220727,89207.0,89195.0,0.01121139]
[1769304003567,0.11220727,89206.0,89194.0,0.01121151]
[1769304003774,0.03,89213.0,89195.0,0.27310927]
[1769304003933,0.03,89204.0,89198.0,0.218681]
[1769304004137,0.03,89202.0,89200.0,0.218681]
[1769304004334,0.03,89202.0,89201.0,0.49179027]
[1769304004547,0.04051475,89202.0,89201.0,0.49179027]
[1769304006359,0.04051475,89202.0,89201.0,0.49171363]
[1769304007185,0.04051475,89202.0,89201.0,0.49163699]
[1769304008508,0.04051475,89202.0,89201.0,0.46624659]
[1769304009231,0.04051475,89202.0,89192.0,0.218681]
[1769304009434,0.03,89200.0,89192.0,0.218681]
[1769304009763,0.03,89198.0,89192.0,0.218681]
[1769304009901,0.01051475,89197.0,89192.0,0.218681]
[1769304010103,0.00051475,89196.0,89192.0,0.218681]
[1769304010298,0.26704399,89206.0,89192.0,0.218681]
[1769304010503,0.25974838,89206.0,89192.0,0.218681]
[1769304010735,0.00729561,89205.0,89192.0,0.218681]
[1769304019669,0.00729561,89205.0,89193.0,0.22610144]
[1769304019812,0.11939499,89209.0,89193.0,0.22602478]
[1769304020010,0.03,89208.0,89193.0,0.22602478]
[1769304020207,0.03,89206.0,89193.0,0.22602478]
[1769304020447,0.03,89204.0,89193.0,0.22602478]
[1769304021512,0.03,89207.0,89193.0,0.22602478]
[1769304021707,0.03,89205.0,89193.0,0.22602478]
[1769304021918,0.03,89205.0,89193.0,0.26846403]
[1769304022142,0.03,89203.0,89194.0,0.22610144]
[1769304022342,0.03,89201.0,89194.0,0.22610144]
[1769304022664,0.03,89199.0,89195.0,0.22610144]
[1769304022851,0.00729561,89208.0,89195.0,0.22610144]
[1769304022852,0.03,89197.0,89195.0,0.22610144]
[1769304023054,0.04050992,89196.0,89195.0,0.22610144]
[1769304024846,0.04034,89196.0,89195.0,0.22610144]
[1769304025045,0.04034,89196.0,89195.0,0.49456547]
[1769304026018,0.03,89207.0,89195.0,0.26846403]
[1769304026180,0.03,89205.0,89195.0,0.26846403]
[1769304026384,0.03,89203.0,89195.0,0.26846403]
[1769304027304,0.03,89202.0,89195.0,0.26846403]
[1769304028381,0.03,89207.0,89195.0,0.26846403]
[1769304028584,0.03,89205.0,89195.0,0.26846403]
[1769304028835,0.03,89203.0,89195.0,0.26846403]
[1769304029508,0.03,89203.0,89195.0,0.26815735]
[1769304029652,0.03,89202.0,89195.0,0.26808068]
[1769304030654,0.03,89201.0,89195.0,0.26808068]
[1769304031274,0.03,89201.0,89195.0,0.26800402]
[1769304031923,0.00729561,89208.0,89195.0,0.49410546]
[1769304031924,0.03,89200.0,89195.0,0.49410546]
[1769304032752,0.03,89200.0,89187.0,0.00062376]
[1769304033048,0.03,89199.0,89187.0,0.00062376]
[1769304033215,0.03,89199.0,89187.0,0.22807216]
[1769304033398,0.03,89199.0,89189.0,0.2274484]
[1769304034152,0.03,89198.0,89189.0,0.2274484]
[1769304035079,0.03,89206.0,89189.0,0.2274484]
[1769304035203,0.03,89204.0,89189.0,0.22737173]
[1769304036241,0.03,89203.0,89189.0,0.22737173]
[1769304036650,0.03,89203.0,89189.0,0.24380668]
[1769304036850,0.03,89203.0,89190.0,0.2274484]
[1769304037186,0.03,89203.0,89190.0,0.24380668]
[1769304037361,0.03,89202.0,89191.0,0.2274484]
[1769304037772,0.03,89202.0,89192.0,0.2274484]
[1769304037986,0.03,89200.0,89192.0,0.2274484]
[1769304038217,0.03,89198.0,89192.0,0.2274484]
[1769304038464,0.15849016,89208.0,89192.0,0.2274484]
[1769304039201,0.03,89207.0,89192.0,0.2274484]
[1769304041003,0.15849016,89208.0,89192.0,0.2274484]
[1769304041332,0.15849016,89208.0,89193.0,0.01308566]
[1769304041534,0.15727715,89208.0,89193.0,0.01308566]
[1769304041752,0.15485109,89208.0,89192.0,0.2274484]
[1769304050449,0.12274022,89207.0,89192.0,0.2274484]
[1769304050749,0.03,89205.0,89192.0,0.2274484]
[1769304050897,0.03,89203.0,89192.0,0.2274484]
[1769304051101,0.03,89201.0,89192.0,0.2274484]
[1769304051300,0.03,89199.0,89192.0,0.2274484]
[1769304051543,0.03,89197.0,89194.0,0.2274484]
[1769304051739,0.03,89195.0,89194.0,0.2274484]
[1769304051944,0.00052058,89195.0,89194.0,0.2274484]
[1769304052863,0.03052058,89195.0,89194.0,0.2274484]
[1769304054215,0.11221964,89207.0,89194.0,0.2274484]
[1769304054367,0.03,89206.0,89194.0,0.2274484]
[1769304060738,0.03,89205.0,89194.0,0.2274484]
[1769304061770,0.03,89204.0,89194.0,0.2274484]
[1769304062845,0.03,89208.0,89194.0,0.2274484]
[1769304063842,0.03,89208.0,89196.0,0.21553721]
[1769304064039,0.03,89208.0,89193.0,0.01121164]
[1769304064040,0.03,89207.0,89200.0,0.21553721]
[1769304064342,0.03,89207.0,89201.0,0.4570036]
[1769304065185,0.03,89206.0,89201.0,0.4570036]
[1769304065389,0.03,89206.0,89196.0,0.21553721]
[1769304065925,0.03,89206.0,89197.0,0.00724156]
[1769304066074,0.03,89205.0,89197.0,0.00724156]
[1769304066280,0.03,89203.0,89197.0,0.00724156]
[1769304066480,0.03,89201.0,89198.0,0.45708029]
[1769304066683,0.03,89201.0,89199.0,0.0072544]
[1769304066885,0.03,89201.0,89199.0,0.22279161]
[1769304067622,0.03,89200.0,89199.0,0.22279161]
[1769304068022,0.03,89200.0,89199.0,0.0072544]
[1769304068424,0.03,89200.0,89195.0,0.00727779]
[1769304068666,0.03,89199.0,89197.0,0.21553721]
[1769304068872,0.03,89199.0,89198.0,0.21553721]
[1769304069451,0.03,89199.0,89198.0,0.22297]
[1769304071036,0.03,89199.0,89198.0,0.00743279]
[1769304071243,0.03,89199.0,89193.0,0.24154308]
[1769304071464,0.03,89199.0,89195.0,0.24154308]
[1769304071662,0.11221215,89210.0,89196.0,0.24154308]
[1769304071663,0.03,89198.0,89196.0,0.24154308]
[1769304071867,0.03,89198.0,89197.0,0.45708029]
[1769304073991,0.11221215,89210.0,89197.0,0.45708029]
[1769304074181,0.11221215,89209.0,89198.0,0.00744363]
[1769304075082,0.11221215,89209.0,89198.0,0.01978615]
[1769304075294,0.03,89208.0,89198.0,0.01978615]
[1769304076275,0.11221215,89209.0,89198.0,0.01978615]
[1769304076501,0.11204223,89209.0,89198.0,0.01978615]
[1769304077164,0.03363377,89212.0,89198.0,0.01978615]
[1769304077361,0.03,89211.0,89198.0,0.01978615]
[1769304078489,0.03,89209.0,89198.0,0.01978615]
[1769304078686,0.03,89207.0,89198.0,0.01978615]
[1769304078885,0.03,89205.0,89198.0,0.01978615]
[1769304079226,0.03,89203.0,89198.0,0.01978615]
[1769304079426,0.03,89201.0,89198.0,0.23799217]
[1769304079629,0.01052016,89200.0,89198.0,0.23799217]
[1769304079830,0.00059685,89199.0,89198.0,0.23799217]
[1769304080216,0.00059685,89199.0,89198.0,0.01978615]
[1769304080399,0.00059685,89199.0,89195.0,0.25315114]
[1769304080606,0.20583377,89212.0,89197.0,0.21820602]
[1769304080822,0.20583377,89212.0,89198.0,0.0197473]
[1769304086437,0.20583377,89212.0,89197.0,0.21820602]
[1769304088437,0.1121999,89211.0,89197.0,0.21820602]
[1769304089770,0.03,89210.0,89197.0,0.21820602]
[1769304090628,0.31826444,89210.0,89197.0,0.21820602]
[1769304090829,0.03,89208.0,89197.0,0.21820602]
[1769304091450,0.1421999,89208.0,89197.0,0.21820602]
[1769304091653,0.03,89206.0,89197.0,0.21820602]
[1769304091850,0.03,89204.0,89197.0,0.21820602]
[1769304092084,0.03,89202.0,89197.0,0.21820602]
[1769304092321,0.03,89200.0,89197.0,0.21820602]
[1769304092448,0.01051866,89199.0,89197.0,0.21820602]
[1769304092659,0.00051866,89198.0,89197.0,0.21820602]
[1769304094459,0.12692374,89212.0,89197.0,0.21820602]
[1769304102785,0.03,89211.0,89197.0,0.21820602]
[1769304106370,0.03,89209.0,89197.0,0.21820602]
[1769304106554,0.03,89207.0,89197.0,0.21820602]
[1769304106754,0.03,89205.0,89197.0,0.21820602]
[1769304106955,0.03,89203.0,89198.0,0.01889644]
[1769304107152,0.03,89201.0,89198.0,0.46197042]
[1769304107400,0.03,89199.0,89198.0,0.44307398]
[1769304107537,0.04052006,89199.0,89198.0,0.44307398]
[1769304110704,0.01035014,89199.0,89198.0,0.44307398]
[1769304110900,0.04035014,89199.0,89198.0,0.21490616]
[1769304112246,0.03,89210.0,89198.0,0.21490616]
[1769304116944,0.03,89210.0,89192.0,0.01121176]
[1769304117142,0.03,89210.0,89196.0,0.21490616]
[1769304117345,0.03,89210.0,89198.0,0.44307398]
[1769304124224,0.03,89208.0,89198.0,0.44307398]
[1769304124363,0.03,89206.0,89198.0,0.44307398]
[1769304124564,0.03,89204.0,89198.0,0.44307398]
[1769304124770,0.03,89202.0,89199.0,0.02042012]
[1769304124970,0.03,89200.0,89198.0,0.44307398]
[1769304125187,0.03052036,89199.0,89198.0,0.44307398]
[1769304127150,0.03,89210.0,89198.0,0.44307398]
[1769304128273,0.03,89210.0,89199.0,0.01999206]
[1769304131962,0.03,89210.0,89198.0,0.44307398]
[1769304133267,0.03,89210.0,89199.0,0.01886984]
[1769304136563,0.03,89210.0,89198.0,0.44307398]
[1769304137727,0.03,89210.0,89199.0,0.02000931]
[1769304137927,0.03,89209.0,89199.0,0.02000931]
[1769304138145,0.14221442,89209.0,89199.0,0.02000931]
[1769304138349,0.03,89207.0,89199.0,0.02000931]
[1769304138552,0.14221442,89207.0,89199.0,0.02000931]
[1769304138910,0.03,89207.0,89199.0,0.02000931]
[1769304139158,0.01051982,89206.0,89199.0,0.02000931]
[1769304139389,0.04051982,89205.0,89199.0,0.02000931]
[1769304139606,0.03,89203.0,89200.0,0.20579668]
[1769304139823,0.04051982,89202.0,89201.0,0.01272402]
[1769304145291,0.03,89202.0,89201.0,0.01272402]
[1769304145600,0.04052019,89202.0,89201.0,0.01272402]
[1769304147025,0.11221168,89213.0,89201.0,0.01272402]
[1769304147174,0.03,89212.0,89201.0,0.01272402]
[1769304149300,0.03,89211.0,89201.0,0.01272402]
[1769304150447,0.03,89210.0,89201.0,0.01272402]
[1769304151413,0.03,89213.0,89201.0,0.01272402]
[1769304153586,0.14221168,89213.0,89201.0,0.01272402]
[1769304154114,0.03,89211.0,89201.0,0.01272402]
[1769304154962,0.03,89211.0,89196.0,0.01280939]
[1769304155160,0.15342106,89211.0,89196.0,0.01280939]
[1769304155366,0.03,89209.0,89196.0,0.01280939]
[1769304155581,0.02093786,89211.0,89196.0,0.01280939]
[1769304155993,0.2815307,89210.0,89196.0,0.01280939]
[1769304156192,0.25976273,89210.0,89196.0,0.01280939]
[1769304156401,0.03,89209.0,89196.0,0.01280939]
[1769304156603,0.28120186,89210.0,89196.0,0.01280939]
[1769304156813,0.27653269,89210.0,89196.0,0.01280939]
[1769304157016,0.01120912,89213.0,89196.0,0.01280939]
[1769304157265,0.2770472,89210.0,89196.0,0.01280939]
[1769304157469,0.26926538,89210.0,89196.0,0.01280939]
[1769304157708,0.03,89213.0,89196.0,0.01280939]
[1769304158077,0.28825632,89210.0,89196.0,0.01280939]
[1769304158278,0.06725483,89213.0,89196.0,0.01280939]
[1769304158440,0.28825632,89210.0,89196.0,0.01280939]
[1769304158846,0.03,89209.0,89196.0,0.01280939]
[1769304159071,0.03,89207.0,89196.0,0.01280939]
[1769304159260,0.03,89205.0,89196.0,0.01828636]
[1769304159470,0.03,89203.0,89196.0,0.01828636]
[1769304159629,0.03,89201.0,89196.0,0.01828636]
[1769304159840,0.03,89199.0,89196.0,0.22814828]
[1769304160022,0.01051987,89198.0,89196.0,0.22814828]
[1769304160223,0.00051987,89197.0,89196.0,0.22814828]
[1769304161972,0.21077619,89210.0,89196.0,0.22814828]
[1769304167543,0.11216954,89209.0,89196.0,0.22814828]
[1769304168711,0.11216954,89208.0,89196.0,0.22814828]
[1769304168927,0.23041085,89213.0,89196.0,0.22814828]
[1769304169489,0.11216942,89212.0,89196.0,0.22814828]
[1769304170165,0.03,89211.0,89196.0,0.22814828]
[1769304172148,0.14216942,89211.0,89196.0,0.22814828]
[1769304172355,0.03,89209.0,89196.0,0.22814828]
[1769304173182,0.14216942,89209.0,89196.0,0.22814828]
[1769304173362,0.03,89207.0,89196.0,0.22814828]
[1769304173564,0.14216942,89207.0,89196.0,0.22814828]
[1769304173766,0.03,89205.0,89196.0,0.22814828]
[1769304173964,0.03,89203.0,89196.0,0.22814828]
[1769304174167,0.03,89201.0,89196.0,0.4553778]
[1769304174380,0.03,89199.0,89196.0,0.43709144]
[1769304174628,0.04052022,89198.0,89197.0,0.01840758]
[1769304176510,0.0405201,89198.0,89197.0,0.01840758]
[1769304177058,0.11216949,89208.0,89197.0,0.01840758]
[1769304177279,0.11216949,89207.0,89197.0,0.01840758]
[1769304177475,0.11216949,89206.0,89197.0,0.01840758]
[1769304177674,0.03,89204.0,89197.0,0.01840758]
[1769304178807,0.14217026,89209.0,89197.0,0.01840758]
[1769304178993,0.03,89207.0,89197.0,0.01840758]
[1769304179188,0.14217026,89207.0,89197.0,0.01840758]
[1769304179389,0.03,89205.0,89197.0,0.01840758]
[1769304179573,0.14217026,89205.0,89197.0,0.01840758]
[1769304179790,0.03,89205.0,89197.0,0.01840758]
[1769304180536,0.03,89209.0,89197.0,0.01840758]
[1769304180698,0.14217152,89209.0,89197.0,0.01840758]
[1769304180901,0.03,89207.0,89197.0,0.01840758]
[1769304181119,0.14217152,89207.0,89197.0,0.01840758]
[1769304181338,0.03,89205.0,89197.0,0.01840758]
[1769304181532,0.14217152,89205.0,89197.0,0.01840758]
[1769304181763,0.03,89205.0,89197.0,0.01840758]
[1769304182466,0.03,89209.0,89197.0,0.01840758]
[1769304182598,0.14217304,89209.0,89197.0,0.01840758]
[1769304182800,0.03,89207.0,89197.0,0.01840758]
[1769304184014,0.14217304,89207.0,89197.0,0.01840758]
[1769304184366,0.03,89205.0,89197.0,0.01840758]
[1769304185248,0.03,89208.0,89197.0,0.01840758]
[1769304185430,0.14217304,89208.0,89197.0,0.01840758]
[1769304185631,0.03,89206.0,89197.0,0.01840758]
[1769304185848,0.14217304,89206.0,89197.0,0.01840758]
[1769304186042,0.03,89204.0,89197.0,0.01840758]
[1769304186980,0.03,89203.0,89197.0,0.01840758]
[1769304187966,0.03,89204.0,89197.0,0.01840758]
[1769304188988,0.03,89203.0,89197.0,0.01840758]
[1769304189189,0.03,89201.0,89197.0,0.22098542]
[1769304189391,0.03,89199.0,89197.0,0.22098542]
[1769304189618,0.03052081,89198.0,89197.0,0.22098542]
[1769304194728,0.33129963,89213.0,89197.0,0.22098542]
[1769304194729,0.03,89206.0,89197.0,0.22098542]
[1769304195826,0.03,89205.0,89197.0,0.22098542]
[1769304196977,0.03,89204.0,89197.0,0.22098542]
[1769304197917,0.03,89212.0,89197.0,0.22098542]
[1769304199137,0.03,89210.0,89197.0,0.22098542]
[1769304200119,0.03,89211.0,89197.0,0.22098542]
[1769304200970,0.03,89209.0,89197.0,0.22098542]
[1769304202072,0.03,89210.0,89197.0,0.22098542]
[1769304203483,0.03,89209.0,89197.0,0.22098542]
[1769304204508,0.03,89208.0,89197.0,0.22098542]
[1769304205445,0.03,89207.0,89197.0,0.22098542]
[1769304206759,0.03,89205.0,89197.0,0.22098542]
[1769304206964,0.03,89203.0,89197.0,0.22098542]
[1769304207177,0.11973554,89212.0,89197.0,0.43207221]
[1769304207178,0.03,89201.0,89197.0,0.43207221]
[1769304207393,0.03,89199.0,89197.0,0.41366463]
[1769304207593,0.03085955,89198.0,89197.0,0.41366463]
[1769304212396,0.08202019,89211.0,89197.0,0.41366463]
[1769304212598,0.03,89210.0,89198.0,0.00112419]
[1769304213593,0.03,89211.0,89198.0,0.00112419]
[1769304214127,0.03,89211.0,89198.0,0.01198265]
[1769304220040,0.03,89211.0,89198.0,0.44607171]
[1769304220242,0.03,89211.0,89198.0,0.43408906]
[1769304220474,0.03,89211.0,89199.0,0.01201706]
[1769304224556,0.03,89209.0,89199.0,0.01201706]
[1769304224758,0.03,89207.0,89199.0,0.01201706]
[1769304224952,0.03,89205.0,89199.0,0.01201706]
[1769304225196,0.03,89203.0,89200.0,0.21587108]
[1769304225474,0.04051896,89202.0,89201.0,0.00538094]
[1769304225840,0.15962169,89214.0,89201.0,0.00538094]
[1769304226234,0.17083069,89214.0,89201.0,0.00538094]
[1769304226439,0.15962169,89214.0,89201.0,0.00538094]
[1769304226958,0.03,89213.0,89201.0,0.00538094]
[1769304230886,0.16900723,89215.0,89201.0,0.00538094]
[1769304231039,0.03,89214.0,89201.0,0.00538094]
[1769304232247,0.03,89215.0,89201.0,0.00538094]
[1769304235420,0.03,89214.0,89201.0,0.00538094]
[1769304236404,0.03,89213.0,89201.0,0.00538094]
[1769304237464,0.03,89216.0,89201.0,0.00538094]
[1769304237748,0.03,89214.0,89201.0,0.00538094]
[1769304237922,0.03,89212.0,89201.0,0.00538094]
[1769304238118,0.03,89210.0,89201.0,0.00538094]
[1769304238307,0.03,89208.0,89201.0,0.00538094]
[1769304238510,0.03,89206.0,89202.0,0.21830924]
[1769304238727,0.01466629,89217.0,89203.0,0.22390091]
[1769304238728,0.03,89204.0,89203.0,0.22390091]
[1769304238928,0.04051876,89204.0,89203.0,0.22390091]
[1769304240463,0.03,89215.0,89203.0,0.22390091]
[1769304241012,0.15336767,89215.0,89203.0,0.22390091]
[1769304241211,0.1421588,89215.0,89203.0,0.22390091]
[1769304241617,0.03,89213.0,89203.0,0.22390091]
[1769304242633,0.03,89212.0,89203.0,0.22390091]
[1769304243594,0.1421588,89212.0,89203.0,0.22390091]
[1769304243803,0.1421588,89211.0,89203.0,0.22390091]
[1769304244008,0.03,89209.0,89203.0,0.22390091]
[1769304244206,0.1421588,89209.0,89203.0,0.22390091]
[1769304244384,0.03,89209.0,89203.0,0.22390091]
[1769304245307,0.03,89208.0,89203.0,0.22390091]
[1769304246415,0.03,89207.0,89203.0,0.22390091]
[1769304247411,0.03,89206.0,89203.0,0.22390091]
[1769304248392,0.03,89205.0,89203.0,0.22390091]
[1769304249403,0.03,89214.0,89203.0,0.22390091]
[1769304251001,0.03,89213.0,89203.0,0.22390091]
[1769304252042,0.03,89212.0,89203.0,0.22390091]
[1769304252246,0.03,89210.0,89203.0,0.22390091]
[1769304252450,0.03,89208.0,89203.0,0.22390091]
[1769304252665,0.03,89206.0,89203.0,0.22390091]
[1769304252870,0.01052033,89205.0,89203.0,0.22390091]
[1769304253076,0.0078151,89204.0,89203.0,0.00559167]
[1769304253284,0.0078151,89204.0,89197.0,0.00568873]
[1769304253493,0.12338335,89212.0,89197.0,0.22174918]
[1769304254284,0.01466629,89211.0,89197.0,0.22174918]
[1769304256334,0.12684039,89211.0,89197.0,0.22174918]
[1769304256773,0.1121741,89210.0,89197.0,0.22174918]
[1769304256981,0.1121741,89209.0,89197.0,0.22174918]
[1769304257183,0.1121741,89208.0,89197.0,0.22174918]
[1769304257396,0.1121741,89207.0,89197.0,0.22174918]
[1769304257632,0.01466629,89207.0,89197.0,0.22174918]
[1769304260223,0.01466629,89207.0,89197.0,0.2434087]
[1769304260524,0.01466629,89207.0,89198.0,0.21606045]
[1769304260724,0.01466629,89207.0,89199.0,0.00489088]
[1769304262037,0.24640411,89213.0,89199.0,0.02055141]
[1769304262303,0.01120925,89212.0,89199.0,0.02055141]
[1769304262481,0.24640411,89213.0,89199.0,0.02055141]
[1769304262664,0.01120925,89212.0,89199.0,0.02055141]
[1769304263244,0.03,89211.0,89199.0,0.02055141]
[1769304264811,0.03,89210.0,89199.0,0.02055141]
[1769304265036,0.03,89208.0,89199.0,0.02055141]
[1769304265238,0.03,89206.0,89199.0,0.02055141]
[1769304265580,0.03,89204.0,89200.0,0.21606045]
[1769304265775,0.03,89202.0,89201.0,0.23665596]
[1769304265983,0.0405192,89202.0,89201.0,0.23665596]
[1769304267611,0.01120925,89212.0,89201.0,0.23665596]
[1769304267819,0.03,89211.0,89201.0,0.23665596]
[1769304268825,0.03,89210.0,89201.0,0.23665596]
[1769304269807,0.03,89212.0,89201.0,0.23665596]
[1769304270470,0.0001509,89218.0,89202.0,0.23771997]
[1769304270673,0.0001509,89218.0,89206.0,0.23771997]
[1769304270948,0.0001509,89218.0,89210.0,0.23771997]
[1769304271267,0.0001509,89218.0,89211.0,0.2110147]
[1769304271498,0.03,89222.0,89212.0,0.23771997]
[1769304271644,0.03,89222.0,89215.0,0.21466199]
[1769304272002,0.03,89222.0,89200.0,0.21466199]
[1769304272003,0.03,89214.0,89200.0,0.21466199]
[1769304272142,0.03,89214.0,89203.0,0.21466199]
[1769304272348,0.03,89214.0,89204.0,0.21466199]
[1769304272563,0.03,89214.0,89206.0,0.21466199]
[1769304272762,7.991e-05,89214.0,89206.0,0.21466199]
[1769304273375,7.991e-05,89214.0,89199.0,0.03362996]
[1769304273707,7.991e-05,89214.0,89200.0,0.23687804]
[1769304273872,7.991e-05,89214.0,89201.0,0.21466199]
[1769304274077,7.991e-05,89214.0,89202.0,0.21466199]
[1769304274484,7.991e-05,89214.0,89202.0,0.23687804]
[1769304274660,7.991e-05,89214.0,89203.0,0.21466199]
[1769304275478,7.991e-05,89214.0,89206.0,0.23687804]
[1769304275684,7.991e-05,89214.0,89207.0,0.21466199]
[1769304278933,7.991e-05,89214.0,89208.0,0.01969036]
[1769304279134,7.991e-05,89214.0,89208.0,0.23660112]
[1769304279899,0.01050948,89213.0,89210.0,0.21691076]
[1769304280046,7.991e-05,89214.0,89212.0,0.21691076]
[1769304280232,0.01050948,89213.0,89212.0,0.21691076]
[1769304281471,0.03,89218.0,89212.0,0.21691076]
[1769304281637,0.03006395,89218.0,89212.0,0.21691076]
[1769304282537,6.395e-05,89218.0,89212.0,0.21691076]
[1769304285632,0.03006395,89218.0,89212.0,0.21691076]
[1769304286721,0.03,89217.0,89212.0,0.21691076]
[1769304286902,0.03,89217.0,89207.0,0.00778156]
[1769304287331,0.03,89217.0,89207.0,0.2446596]
[1769304287533,0.03,89217.0,89208.0,0.21915955]
[1769304287760,6.395e-05,89218.0,89210.0,0.21915955]
[1769304287971,6.395e-05,89218.0,89211.0,0.00773063]
[1769304289477,6.395e-05,89218.0,89210.0,0.21915955]
[1769304289825,0.03,89217.0,89210.0,0.21915955]
[1769304290858,0.03,89216.0,89210.0,0.21915955]
[1769304292054,6.395e-05,89218.0,89210.0,0.21915955]
[1769304292439,0.03,89217.0,89210.0,0.21915955]